bitfinex-derivatives/quotes_ETHF0:USTF0_20250627
["timestamp","ask_amount","ask_price","bid_price","bid_amount"]
[1751048896366,0.83262,2401.0,2400.7,46.24182703]
[1751048896367,0.83269,2400.8,2400.7,6.831]
[1751048896671,4.70801703,2400.8,2400.7,6.831]
[1751048896861,4.70801703,2400.8,2400.7,32.683]
[1751048897176,0.83279,2400.5,2400.4,6.831]
[1751048897360,0.83279,2400.5,2400.4,32.683]
[1751048897561,0.83274,2400.7,2400.5,0.83279]
[1751048897764,2.30414,2400.7,2400.6,25.852]
[1751048898065,2.30414,2400.7,2400.0,4.14003403]
[1751048898066,0.83293,2400.1,2400.0,4.14003403]
[1751048898269,0.83293,2400.1,2400.0,29.99103403]
[1751048898561,5.28984,2400.5,2400.0,29.99103403]
[1751048898562,0.83292,2400.2,2400.0,29.99103403]
[1751048898768,6.66234,2400.5,2400.0,29.99103403]
[1751048898769,0.83293,2400.1,2400.0,29.99103403]
[1751048898970,0.83291,2400.2,2400.0,29.99103403]
[1751048899264,0.7556,2400.4,2400.0,4.14003403]
[1751048899265,0.83293,2400.1,2400.0,4.14003403]
[1751048899570,0.83296,2400.0,2399.9,7.34783403]
[1751048900262,0.83296,2400.0,2399.9,3.2078]
[1751048900561,0.83301,2399.9,2399.8,6.833]
[1751048900767,1.3725,2399.9,2399.8,33.52103]
[1751048900957,2.2055,2399.9,2399.8,32.688]
[1751048901366,1.3725,2399.9,2399.8,33.52103]
[1751048901566,2.2055,2399.9,2399.8,32.688]
[1751048901769,2.2055,2399.9,2399.8,6.833]
[1751048901970,2.2055,2399.9,2399.8,32.691]
[1751048904565,3.2078,2400.2,2399.8,32.691]
[1751048904770,4.6863,2400.2,2399.9,0.83299]
[1751048904965,0.83297,2400.0,2399.9,25.856]
[1751048905269,5.82297,2400.0,2399.9,25.856]
[1751048908072,0.833,2399.9,2399.8,6.833]
[1751048908369,2.1872,2399.9,2399.8,32.69]
[1751048908569,2.1872,2399.9,2399.4,41.63315]
[1751048908570,0.83317,2399.4,2399.2,0.83323]
[1751048908774,0.83324,2399.2,2399.1,6.823]
[1751048908968,0.83324,2399.2,2399.1,32.682]
[1751048909270,0.83324,2399.2,2399.1,25.859]
[1751048909672,1.3542,2399.3,2399.1,25.859]
[1751048909874,4.99,2399.7,2399.2,6.823]
[1751048910068,12.8296,2400.2,2399.4,10.67193099]
[1751048910373,4.99,2399.6,2399.5,26.69114]
[1751048911670,4.99,2399.6,2399.5,28.15424]
[1751048913268,4.99,2399.6,2399.4,3.9117]
[1751048913468,4.99,2399.6,2399.5,26.69214]
[1751048914966,4.99,2399.6,2399.5,28.07764]
[1751048915271,4.99,2399.6,2399.5,26.69214]
[1751048917270,5.8231,2399.6,2399.4,3.2078]
[1751048917479,0.83314,2399.5,2399.4,10.0328]
[1751048917776,7.26713,2399.6,2399.4,36.72297]
[1751048917978,0.83314,2399.5,2399.4,3.2078]
[1751048918167,2.27714,2399.5,2399.4,3.2078]
[1751048918373,2.27714,2399.5,2399.4,29.0648]
[1751048918374,3.73064,2399.5,2399.4,29.0648]
[1751048918668,8.72064,2399.5,2399.4,3.2078]
[1751048918873,8.72064,2399.5,2399.4,29.0648]
[1751048919268,4.99,2399.5,2399.4,29.89797]
[1751048919471,0.83304,2399.8,2399.4,29.0648]
[1751048919681,0.83304,2399.8,2399.6,0.83309]
[1751048919682,4.99,2399.7,2399.6,0.83309]
[1751048919875,5.82307,2399.7,2399.6,25.856]
[1751048920081,4.99,2399.7,2399.6,25.856]
[1751048920385,5.82307,2399.7,2399.6,25.856]
[1751048920574,0.83314,2399.5,2399.4,3.2078]
[1751048920777,0.83314,2399.5,2399.4,35.8888]
[1751048921171,0.83314,2399.5,2399.4,3.2078]
[1751048921371,1.56404,2399.5,2399.4,3.2078]
[1751048921574,9.02817099,2399.5,2399.4,3.2078]
[1751048921874,0.83331,2399.0,2398.9,6.825]
[1751048922075,0.83331,2399.0,2398.9,32.682]
[1751048922279,4.04105,2399.2,2399.0,0.83329]
[1751048922473,4.04104,2399.2,2399.1,25.856]
[1751048923069,9.03104,2399.2,2399.1,25.856]
[1751048924475,8.1978,2399.2,2398.7,40.8]
[1751048924674,0.83331,2399.0,2398.9,6.826]
[1751048924980,0.83331,2399.0,2398.9,32.683]
[1751048925679,1.524,2399.1,2398.9,33.51632]
[1751048925882,8.1978,2399.2,2398.9,32.683]
[1751048926073,8.1978,2399.2,2399.1,0.83328]
[1751048926275,4.99,2399.2,2399.1,0.83328]
[1751048926473,0.83318,2399.4,2399.0,3.2078]
[1751048926775,4.99,2399.3,2399.1,0.83324]
[1751048926972,4.99,2399.3,2399.2,26.69124]
[1751048927377,3.2078,2399.6,2399.2,25.858]
[1751048927579,0.83318,2399.4,2399.3,6.826]
[1751048927880,0.83324,2399.2,2398.9,0.787343]
[1751048928085,3.2078,2399.3,2399.0,32.683]
[1751048928277,4.99,2399.4,2399.1,0.83327]
[1751048928478,4.99,2399.4,2399.2,0.83323]
[1751048928781,5.82317,2399.4,2399.3,25.857]
[1751048929671,0.83317,2399.4,2399.3,25.857]
[1751048930080,5.82317,2399.4,2399.3,25.857]
[1751048930870,4.99,2399.4,2399.3,25.857]
[1751048931074,4.99,2399.4,2399.3,26.69021]
[1751048932077,4.04093,2399.6,2399.3,26.69021]
[1751048932279,5.82314,2399.5,2399.4,6.826]
[1751048934474,4.99,2399.5,2399.4,6.826]
[1751048934675,5.82314,2399.5,2399.4,6.826]
[1751048934875,4.99,2399.5,2399.4,6.826]
[1751048935072,5.82314,2399.5,2399.4,6.826]
[1751048935285,0.83319,2399.4,2399.2,0.83322]
[1751048935486,0.83319,2399.4,2399.3,32.68]
[1751048935978,4.99,2399.5,2399.3,32.68]
[1751048936178,6.4333,2399.5,2399.3,32.68]
[1751048936379,7.26645,2399.5,2399.3,33.5132]
[1751048936779,0.83317,2399.4,2399.3,32.68]
[1751048937480,7.26646,2399.5,2399.3,33.5132]
[1751048937781,6.4333,2399.5,2399.3,33.5132]
[1751048938684,7.26644,2399.5,2399.3,33.5132]
[1751048938880,0.83317,2399.4,2399.3,32.68]
[1751048939189,7.26645,2399.5,2399.3,0.83319]
[1751048939389,6.4333,2399.5,2399.4,25.85]
[1751048939580,7.26644,2399.5,2399.4,25.85]
[1751048939977,4.99,2399.5,2399.4,26.68317]
[1751048940382,1.7822,2399.5,2399.4,39.14730099]
[1751048940686,0.83295,2400.1,2399.8,0.83302]
[1751048940883,1.1657556,2400.0,2399.9,33.497]
[1751048941083,1.9987156,2400.0,2399.8,40.8]
[1751048941282,1.3499,2400.0,2399.9,26.682]
[1751048941588,11.549454,2400.0,2399.9,25.849]
[1751048941787,9.5508,2400.0,2399.5,0.83313]
[1751048941987,0.83309,2399.7,2399.6,25.848]
[1751048942195,4.04089,2399.7,2399.6,25.848]
[1751048942693,0.83314,2399.5,2399.4,6.814]
[1751048942887,0.83313,2399.6,2399.4,33.49417]
[1751048943089,1.3499,2399.5,2399.4,32.661]
[1751048943692,1.3499,2399.5,2399.4,6.814]
[1751048943895,2.18304,2399.5,2399.4,32.66]
[1751048944884,1.3499,2399.5,2399.4,32.66]
[1751048945090,1.3499,2399.5,2399.3,0.83318]
[1751048945295,1.3499,2399.5,2399.4,32.659]
[1751048945496,2.18304,2399.5,2399.4,32.659]
[1751048946401,1.3499,2399.5,2399.4,32.659]
[1751048946695,2.18304,2399.5,2399.4,32.659]
[1751048947494,2.18306,2399.5,2399.4,6.814]
[1751048947795,2.18306,2399.5,2399.4,32.658]
[1751048948391,9.64719099,2399.5,2399.4,32.658]
[1751048949598,9.64719099,2399.5,2399.4,6.814]
[1751048949800,9.64719099,2399.5,2399.4,32.656]
[1751048949990,9.64719099,2399.5,2399.4,6.814]
[1751048950191,9.64719099,2399.5,2399.4,32.656]
[1751048950397,13.36289099,2399.5,2399.4,32.656]
[1751048951303,0.83324,2399.2,2399.1,7.64726]
[1751048951488,0.83324,2399.2,2399.1,6.814]
[1751048951694,8.29737099,2399.2,2399.1,6.814]
[1751048951893,8.29737099,2399.2,2399.1,32.655]
[1751048952094,8.29737099,2399.2,2398.6,5.60403403]
[1751048952095,0.83338,2398.9,2398.8,6.814]
[1751048952302,4.04118,2398.9,2398.8,6.814]
[1751048952502,4.04118,2398.9,2398.8,32.654]
[1751048952889,10.67193099,2398.9,2398.5,47.979]
[1751048953202,0.83341,2398.7,2398.6,32.657]
[1751048953402,0.83341,2398.7,2398.6,32.656]
[1751048953702,2.27831,2398.7,2398.6,32.656]
[1751048955601,2.27831,2398.7,2398.6,6.815]
[1751048955789,2.27831,2398.7,2398.6,32.655]
[1751048955994,2.27831,2398.7,2398.3,3.9168]
[1751048955995,1.4449,2398.7,2398.3,3.2078]
[1751048956191,1.53235,2398.6,2398.5,6.815]
[1751048956501,1.53235,2398.6,2398.5,32.654]
[1751048957008,2.89685,2398.6,2398.5,6.815]
[1751048957295,13.56878099,2398.6,2398.5,32.655]
[1751048957903,14.81901099,2398.6,2397.9,8.18151403]
[1751048958210,0.83362,2398.1,2398.0,32.654]
[1751048959094,0.83362,2398.1,2398.0,6.815]
[1751048959404,2.18602,2398.1,2397.9,40.8]
[1751048959702,0.8338,2397.6,2397.5,5.79476649]
[1751048959907,4.0416,2397.6,2397.5,9.94385729]
[1751048960094,4.0416,2397.6,2397.4,36.8060908]
[1751048960294,2.0306,2397.5,2397.4,32.657]
[1751048960494,2.0306,2397.5,2397.4,33.49087]
[1751048960699,2.0306,2397.5,2397.4,32.657]
[1751048960904,2.0306,2397.5,2397.4,33.49087]
[1751048961105,2.0306,2397.5,2397.4,32.657]
[1751048961405,3.2078,2397.9,2397.4,33.49085]
[1751048961600,4.9931,2397.6,2397.5,0.83382]
[1751048961998,4.9931,2397.6,2397.4,33.49085]
[1751048962195,8.2009,2397.6,2397.5,0.83383]
[1751048962395,4.9931,2397.6,2397.5,0.83383]
[1751048962604,4.9931,2397.6,2397.5,5.83383]
[1751048962804,3.2078,2397.9,2397.7,0.83373]
[1751048963001,8.2009,2397.9,2397.8,33.49473]
[1751048963308,8.2009,2397.9,2397.8,32.661]
[1751048963709,8.2009,2397.9,2397.8,33.49473]
[1751048964809,8.2009,2397.9,2397.8,32.661]
[1751048965206,9.03459,2397.9,2397.8,32.661]
[1751048965509,8.2009,2397.9,2397.8,33.49473]
[1751048966207,9.683,2397.9,2397.8,33.49473]
[1751048966902,9.683,2397.9,2397.8,32.661]
[1751048967303,17.98082099,2397.9,2397.8,25.843]
[1751048967503,17.14713099,2397.9,2397.8,25.843]
[1751048967702,17.98082099,2397.9,2397.8,25.843]
[1751048967906,9.683,2397.9,2397.8,25.843]
[1751048968206,8.2009,2397.9,2397.8,26.67673]
[1751048970312,8.2009,2397.9,2397.8,26.5636]
[1751048970804,9.03459,2397.9,2397.8,25.843]
[1751048971003,8.2009,2397.9,2397.8,25.843]
[1751048971200,8.2009,2397.9,2397.8,26.67673]
[1751048973616,4.9931,2397.9,2397.8,26.67673]
[1751048974398,4.9931,2397.9,2397.8,39.14086099]
[1751048974601,3.2078,2398.2,2398.1,0.83362]
[1751048974907,3.2078,2398.2,2398.1,33.48262]
[1751048976009,9.03441,2398.5,2398.2,0.83357]
[1751048976208,8.2009,2398.5,2398.3,32.648]
[1751048976405,1.4745,2398.4,2398.3,25.841]
[1751048976606,2.30802,2398.4,2398.3,25.841]
[1751048976804,9.03439,2398.5,2398.3,26.67454]
[1751048977104,8.2009,2398.5,2398.3,26.67454]
[1751048977310,8.2009,2398.5,2398.4,0.83352]
[1751048977502,8.2009,2398.5,2398.4,2.23192]
[1751048977702,8.2009,2398.5,2398.4,3.60582]
[1751048978102,3.2078,2398.5,2398.4,3.60582]
[1751048978609,7.1489,2398.8,2398.4,3.60582]
[1751048978610,8.2009,2398.8,2398.6,0.83343]
[1751048978912,9.03428,2398.8,2398.7,25.839]
[1751048979107,8.2009,2398.8,2398.7,25.839]
[1751048979407,9.03428,2398.8,2398.7,25.839]
[1751048979809,10.17932288,2398.8,2398.7,32.643]
[1751048980004,10.17932288,2398.8,2398.3,44.0078]
[1751048980005,2.08387,2398.4,2397.9,48.025]
[1751048980208,0.83362,2398.1,2398.0,32.643]
[1751048980403,0.83362,2398.1,2398.0,6.806]
[1751048980604,0.83362,2398.1,2398.0,32.642]
[1751048980605,2.19012,2398.1,2398.0,32.642]
[1751048982608,0.83366,2398.0,2397.9,54.831]
[1751048982912,0.83366,2398.0,2397.9,6.806]
[1751048983105,0.83376,2397.7,2397.6,4.0416]
[1751048983308,0.83376,2397.8,2397.6,36.6836]
[1751048983507,0.83376,2397.8,2397.7,0.83376]
[1751048983707,0.83371,2397.9,2397.7,0.83376]
[1751048983903,0.83371,2397.9,2397.8,32.642]
[1751048985013,4.04151,2397.9,2397.8,32.642]
[1751048985409,5.38471,2397.9,2397.8,32.642]
[1751048987413,4.04151,2397.9,2397.8,32.642]
[1751048988715,4.04149,2397.9,2397.8,32.642]
[1751048989114,3.2078,2397.9,2397.8,32.642]
[1751048989314,4.04149,2397.9,2397.8,32.642]
[1751048989510,4.04149,2397.9,2397.8,32.64]
[1751048990014,9.03459,2397.9,2397.8,32.64]
[1751048995418,9.03459,2397.9,2397.7,26.66575]
[1751048995621,9.03459,2397.9,2397.7,25.832]
[1751048995821,0.83373,2397.8,2397.7,25.832]
[1751048996120,8.2009,2397.9,2397.7,26.66574]
[1751048996322,9.03459,2397.9,2397.8,6.807]
[1751048997421,0.83373,2397.8,2397.6,0.83378]
[1751048997616,3.01633,2397.8,2397.7,32.637]
[1751048997918,2.9073,2397.8,2397.7,33.47076]
[1751048998117,3.74103,2397.8,2397.7,6.807]
[1751048998420,2.9073,2397.8,2397.7,33.46976]
[1751048998719,2.9073,2397.8,2397.7,32.636]
[1751048998920,2.9073,2397.8,2397.7,33.46976]
[1751048999219,3.74103,2397.8,2397.7,32.636]
[1751048999426,2.9073,2397.8,2397.7,32.636]
[1751048999813,2.9073,2397.8,2397.7,33.46976]
[1751049000020,3.74103,2397.8,2397.7,32.636]
[1751049000914,3.74103,2397.8,2397.7,32.635]
[1751049001118,2.9073,2397.8,2397.7,0.83376]
[1751049001316,1.4397,2397.8,2397.7,33.45776]
[1751049002818,8.2009,2397.9,2397.8,0.83373]
[1751049003016,3.2078,2397.9,2397.8,0.83373]
[1751049003623,3.2078,2397.9,2397.8,1.51343]
[1751049005620,4.04149,2397.9,2397.8,32.621]
[1751049005817,4.0415,2397.9,2397.5,0.7063]
[1751049006123,3.2078,2397.9,2397.8,6.796]
[1751049006314,8.2009,2397.9,2397.8,32.619]
[1751049006912,8.2009,2397.9,2397.8,33.45273]
[1751049007315,3.2078,2397.9,2397.5,2.0694]
[1751049007515,0.83383,2397.5,2397.4,4.16273248]
[1751049007714,0.83404,2396.9,2396.8,6.796]
[1751049007915,0.83404,2396.9,2396.5,0.7063]
[1751049007916,0.83418,2396.5,2396.4,56.29358669]
[1751049008219,10.67193099,2396.6,2396.4,88.91158669]
[1751049008522,11.50610099,2396.6,2396.4,88.91158669]
[1751049008723,3.2078,2396.6,2396.4,80.646]
[1751049008927,3.2078,2396.6,2396.5,32.618]
[1751049009119,4.04194,2396.6,2396.5,32.618]
[1751049009319,3.2078,2396.6,2396.5,32.618]
[1751049009620,8.2009,2396.6,2396.5,32.618]
[1751049010128,4.9931,2396.6,2396.5,33.45218]
[1751049010330,3.2078,2396.9,2396.5,32.618]
[1751049010526,0.0197,2396.8,2396.7,0.8341]
[1751049010727,0.0197,2396.8,2396.7,26.6551]
[1751049011222,3.2078,2397.2,2397.1,0.83397]
[1751049011429,3.2078,2397.2,2397.1,33.45697]
[1751049012128,8.1812,2397.2,2397.1,33.45697]
[1751049012622,3.2078,2397.2,2397.1,33.45697]
[1751049013532,2.0434,2397.4,2397.3,0.8339]
[1751049013733,2.0434,2397.4,2397.3,26.6599]
[1751049014235,3.2078,2397.8,2397.5,0.83381]
[1751049014427,4.9734,2397.7,2397.6,32.623]
[1751049014732,13.27129099,2397.7,2397.6,32.623]
[1751049015419,12.43753099,2397.7,2397.6,32.623]
[1751049015624,4.9734,2397.7,2397.6,32.623]
[1751049015825,4.9734,2397.7,2397.6,33.4568]
[1751049016030,4.9734,2397.7,2397.6,32.623]
[1751049016536,4.9734,2397.7,2397.6,32.622]
[1751049016724,4.9734,2397.7,2397.6,33.4558]
[1751049017331,3.2078,2397.8,2397.6,33.4558]
[1751049018334,3.2078,2397.8,2397.7,0.83376]
[1751049019029,3.2078,2397.8,2397.6,32.622]
[1751049019234,3.2078,2397.8,2397.6,33.4558]
[1751049019629,3.2078,2397.8,2397.6,32.622]
[1751049020036,3.2078,2397.8,2397.6,33.45577]
[1751049020437,3.2078,2397.8,2397.6,32.622]
[1751049020742,3.2078,2397.8,2397.6,33.45579]
[1751049021031,3.2078,2397.8,2397.7,0.83376]
[1751049021238,0.83377,2397.7,2397.4,1.54744]
[1751049021431,10.67193099,2397.8,2397.2,3.2078]
[1751049021629,4.04167,2397.4,2397.3,6.798]
[1751049022033,5.47227,2397.4,2397.3,32.619]
[1751049022232,0.83395,2397.2,2396.9,0.83402]
[1751049022434,0.83397,2397.1,2397.0,32.619]
[1751049022842,0.834,2397.1,2396.9,0.83404]
[1751049023137,0.83401,2397.0,2396.8,4.04186]
[1751049023344,0.83401,2397.0,2396.9,32.618]
[1751049023529,7.46413099,2397.2,2396.6,0.6924]
[1751049023730,0.83409,2396.8,2396.7,6.798]
[1751049023933,8.29819099,2396.9,2396.7,32.617]
[1751049024133,13.29159099,2396.9,2396.7,32.617]
[1751049024335,12.45753099,2396.9,2396.7,32.617]
[1751049024638,2.96118,2396.8,2396.5,4.04197]
[1751049024838,2.1271,2396.8,2396.6,32.62]
[1751049025031,0.83412,2396.7,2396.5,3.2078]
[1751049025233,1.4066,2396.6,2396.5,3.2078]
[1751049025437,1.4066,2396.6,2396.5,35.8268]
[1751049025637,2.24075,2396.6,2396.5,3.2078]
[1751049025937,6.4,2396.6,2396.5,35.8268]
[1751049026134,13.86413099,2396.6,2396.5,35.8268]
[1751049026333,0.83423,2396.4,2396.1,0.8343]
[1751049026641,18.13606198,2396.4,2395.9,25.821]
[1751049026846,3.2078,2396.0,2395.9,25.821]
[1751049027140,3.2078,2396.0,2395.9,26.65539]
[1751049027341,4.6221,2396.0,2395.9,25.821]
[1751049027543,4.6221,2396.0,2395.9,26.65539]
[1751049027840,4.6221,2396.0,2395.9,25.821]
[1751049028641,4.6221,2396.0,2395.9,26.65539]
[1751049028836,3.2078,2396.0,2395.9,26.65539]
[1751049029037,0.6896,2396.2,2396.1,0.83432]
[1751049029241,0.6896,2396.2,2396.1,25.825]
[1751049029750,1.1519,2396.2,2396.1,33.45832]
[1751049030343,1.1519,2396.2,2396.1,32.624]
[1751049030546,8.61603099,2396.2,2396.1,32.624]
[1751049030849,9.98023099,2396.2,2396.1,32.616]
[1751049031054,9.98023099,2396.2,2396.1,33.45032]
[1751049031055,1.1519,2396.2,2396.1,33.45032]
[1751049031746,1.3642,2396.6,2396.1,40.8238]
[1751049031949,8.82833099,2396.6,2396.1,35.8238]
[1751049032140,9.66250099,2396.6,2396.2,0.83426]
[1751049032342,3.8415,2396.4,2396.3,32.617]
[1751049032649,3.8415,2396.4,2396.3,33.45125]
[1751049032850,3.8415,2396.4,2396.3,0.83425]
[1751049033045,4.67572,2396.4,2396.3,32.617]
[1751049033556,7.0493,2396.4,2396.3,25.826]
[1751049033752,7.88354,2396.4,2396.3,25.825]
[1751049033952,3.8415,2396.4,2396.3,25.825]
[1751049034455,4.67572,2396.4,2396.2,6.791]
[1751049034649,8.85153099,2396.3,2396.2,7.62529]
[1751049034844,9.68578099,2396.3,2395.7,3.8941]
[1751049035050,0.7129,2396.2,2396.0,0.83435]
[1751049035252,1.4429,2396.1,2396.0,0.83435]
[1751049035465,2.1333,2396.1,2396.0,0.83435]
[1751049035756,2.1333,2396.1,2396.0,26.66035]
[1751049035957,2.1333,2396.1,2396.0,0.83435]
[1751049036256,2.1333,2396.1,2396.0,26.66035]
[1751049036653,7.1248,2396.1,2396.0,26.66035]
[1751049036952,7.95912,2396.1,2395.9,7.62637]
[1751049037149,7.46413099,2396.0,2395.9,7.62637]
[1751049037351,9.74139099,2396.0,2395.9,6.792]
[1751049037551,8.90703099,2396.0,2395.9,33.45239]
[1751049037753,1.4429,2396.0,2395.9,33.45239]
[1751049037954,1.4429,2396.0,2395.9,26.66239]
[1751049038150,1.4429,2396.0,2395.9,0.83439]
[1751049038350,0.83442,2395.9,2395.7,7.62644]
[1751049038549,1.3989,2395.8,2395.7,0.83444]
[1751049038754,2.23334,2395.8,2395.6,7.62647]
[1751049039061,1.3989,2395.8,2395.7,25.828]
[1751049039357,1.3989,2395.8,2395.7,26.66246]
[1751049040360,0.6904,2396.1,2396.0,0.83436]
[1751049040560,0.6904,2396.1,2396.0,26.66236]
[1751049040758,0.7129,2396.2,2396.1,0.83432]
[1751049040963,1.4067,2396.2,2396.1,0.83432]
[1751049041165,1.4067,2396.2,2395.9,25.83]
[1751049041166,1.4067,2396.2,2396.0,0.83433]
[1751049041657,0.83432,2396.1,2395.9,26.66438]
[1751049041862,7.46413099,2396.0,2395.7,6.793]
[1751049042060,8.87083099,2396.2,2395.8,25.83]
[1751049042262,9.70513099,2396.2,2395.9,0.83439]
[1751049042456,8.87083099,2396.2,2396.0,0.83435]
[1751049042655,9.70514099,2396.2,2395.8,25.83]
[1751049042856,14.69664099,2396.2,2395.8,25.83]
[1751049043056,0.83433,2396.1,2395.8,26.66442]
[1751049043257,0.83439,2396.0,2395.9,25.83]
[1751049043457,8.29852099,2396.0,2395.9,25.83]
[1751049044270,0.83439,2395.9,2395.8,6.793]
[1751049044560,0.83443,2395.8,2395.6,0.83447]
[1751049044761,0.83441,2395.9,2395.7,33.45845]
[1751049044960,8.29851099,2396.0,2395.8,0.83443]
[1751049045163,0.83449,2395.6,2395.5,48.04]
[1751049045462,7.46413099,2395.7,2395.5,81.49851]
[1751049045856,12.45563099,2395.9,2395.5,80.664]
[1751049046061,4.9915,2395.9,2395.8,0.83443]
[1751049046263,3.2078,2396.4,2395.8,32.624]
[1751049046463,8.13803099,2396.3,2395.9,0.83438]
[1751049046659,0.83433,2396.1,2395.9,0.83438]
[1751049046864,4.9915,2396.1,2395.8,32.624]
[1751049047062,0.83439,2395.9,2395.8,32.624]
[1751049047263,4.9915,2396.1,2395.8,32.624]
[1751049047264,8.29850099,2396.0,2395.8,32.624]
[1751049047463,0.83447,2395.7,2395.5,48.04]
[1751049047665,0.83445,2395.8,2395.6,32.629]
[1751049048069,8.29859099,2395.7,2395.6,6.793]
[1751049048260,8.29859099,2395.7,2395.6,32.639]
[1751049048459,1.8582,2395.7,2395.6,32.639]
[1751049048668,1.8582,2395.7,2395.6,33.47349]
[1751049048863,1.8582,2395.7,2395.6,34.18069]
[1751049049062,0.83434,2396.1,2395.8,0.8344]
[1751049049265,0.83433,2396.1,2395.9,32.655]
[1751049049461,4.9915,2396.0,2395.9,32.655]
[1751049049671,4.9915,2396.0,2395.9,33.48939]
[1751049049971,0.735,2396.2,2396.0,0.83433]
[1751049050164,5.7265,2396.2,2396.1,25.865]
[1751049050366,4.9915,2396.2,2396.1,26.69932]
[1751049050568,4.9915,2396.2,2396.1,25.865]
[1751049051164,4.9915,2396.2,2396.1,26.69932]
[1751049051364,5.82579,2396.2,2396.1,25.865]
[1751049051569,4.9915,2396.2,2396.1,25.865]
[1751049051770,5.82579,2396.2,2396.1,25.865]
[1751049052569,4.9915,2396.2,2396.1,25.865]
[1751049052867,5.82579,2396.2,2396.1,25.865]
[1751049053571,4.9915,2396.2,2396.1,25.865]
[1751049053763,5.82579,2396.2,2396.1,25.865]
[1751049055169,7.27449,2396.2,2396.1,25.865]
[1751049055572,6.4402,2396.2,2396.1,25.865]
[1751049055770,4.9915,2396.2,2396.1,25.865]
[1751049056459,4.9915,2396.2,2396.1,26.665]
[1751049056460,5.82579,2396.2,2396.1,26.665]
[1751049056875,5.82579,2396.2,2395.7,3.2078]
[1751049057073,0.8346,2395.3,2395.2,5.81801778]
[1751049057371,0.8346,2395.3,2394.9,0.83472]
[1751049057372,3.2078,2395.3,2394.9,0.83472]
[1751049057571,3.2078,2395.3,2395.0,32.798]
[1751049057965,2.2231,2395.5,2395.0,32.798]
[1751049057966,0.7409,2395.5,2395.0,36.0058]
[1751049058163,3.2078,2395.3,2395.1,0.6833]
[1751049058475,0.83463,2395.2,2395.1,6.794]
[1751049058775,9.78096099,2395.2,2395.1,6.794]
[1751049058967,0.83488,2394.5,2394.4,8.26558669]
[1751049059368,3.2078,2394.6,2394.1,10.74526269]
[1751049059569,7.46413099,2394.4,2393.9,32.832]
[1751049059772,7.46413099,2394.4,2393.9,34.2278]
[1751049059968,7.46413099,2394.4,2393.9,8.1898]
[1751049060168,3.2078,2394.0,2393.7,21.49052539]
[1751049060475,3.2078,2394.6,2393.9,0.83507]
[1751049060679,3.9355,2394.9,2394.1,10.67193099]
[1751049060976,0.383,2394.7,2394.4,3.2078]
[1751049061179,0.383,2394.7,2394.5,26.131]
[1751049061372,0.383,2394.7,2394.6,6.965]
[1751049061567,0.383,2394.7,2394.6,6.97601725]
[1751049061768,3.2078,2395.2,2394.6,11.97601725]
[1751049061981,0.0199,2394.8,2394.7,4.04261]
[1751049062478,0.0199,2394.8,2394.7,9.04261]
[1751049062675,0.0199,2394.8,2394.7,9.05362725]
[1751049063070,0.85467,2394.8,2394.7,0.01101725]
[1751049063476,0.0199,2394.8,2394.7,0.01101725]
[1751049063881,0.0199,2394.8,2394.7,10.43492725]
[1751049064068,1.0416,2395.0,2394.7,10.43490725]
[1751049064268,1.0416,2395.0,2394.8,27.5383]
[1751049064470,1.0416,2395.0,2394.9,0.83474]
[1751049064672,1.0416,2395.0,2394.9,1.39231725]
[1751049065283,1.0416,2395.0,2394.9,2.22705725]
[1751049066378,0.7509,2395.6,2395.3,7.46413099]
[1751049066582,0.7509,2395.6,2395.5,4.04233]
[1751049066783,0.7509,2395.6,2395.5,44.85334725]
[1751049067092,0.7509,2395.6,2395.5,51.31784725]
[1751049067390,0.7509,2395.6,2395.5,43.11004725]
[1751049067777,7.1647,2395.9,2395.6,0.83449]
[1751049067976,8.29856099,2395.8,2395.5,73.95601725]
[1751049068376,4.9969,2395.7,2395.6,0.83449]
[1751049068688,4.9969,2395.7,2395.6,0.84550725]
[1751049069180,3.2078,2395.9,2395.7,0.83445]
[1751049069375,8.2047,2395.9,2395.8,26.202]
[1751049069887,8.2047,2395.9,2395.8,26.21301725]
[1751049070076,8.2047,2395.9,2395.8,27.04744725]
[1751049070976,0.7028,2396.7,2396.1,0.83431]
[1751049070977,0.83422,2396.4,2396.1,0.83431]
[1751049071176,0.8342,2396.5,2396.2,33.158]
[1751049071480,3.05756,2396.6,2396.3,7.79825]
[1751049071682,0.83422,2396.4,2396.3,6.964]
[1751049071987,0.83422,2396.4,2396.3,6.97501725]
[1751049071988,4.04202,2396.4,2396.3,6.97501725]
[1751049072788,14.03202,2396.4,2396.3,0.01101725]
[1751049073082,0.83429,2396.2,2396.1,6.964]
[1751049073392,9.3634446,2396.2,2396.1,6.964]
[1751049073682,0.83439,2395.9,2395.8,3.2078]
[1751049073883,0.83453,2395.6,2395.4,51.2908]
[1751049074077,11.7369546,2396.0,2395.4,52.12536]
[1751049074078,0.7375,2395.5,2395.4,52.12536]
[1751049074280,0.83448,2395.7,2395.4,84.4528]
[1751049074480,0.8345,2395.6,2395.4,84.4528]
[1751049074687,0.83449,2395.6,2395.4,84.4528]